Cogmind - Beta 14 @@@ ROGUE MODE // 2025.03.08 @ 19:42:00 Player: mathSq Result: Destroyed by H-88 Terminator with KE Penetrator Performance ------------- Evolutions (8) 4000 Regions Visited (15) 3000 Robots Destroyed (134) 670 Value Destroyed (5537) 5537 Prototype IDs (25) 500 Alien Tech Used (2) 400 Bonus (1822) 1822 TOTAL SCORE: 15929 Bonus ------- High Alert Combat Kills 540 Follower Combat Kills 50 Entered DSFs 1000 Met Zhirov 300 Friendly Fire -68 Cogmind --------- Core Integrity 0/1450 Matter 135/300 Energy 100/100 System Corruption 6% Temperature Cool (0) Movement Hovering (70) Location -2/Research Parts ------- > --- POWER (2) -------- (None) > --- PROPULSION (8) --- Improved Gyrokinetic Inverter > --- UTILITY (9) ------ Advanced Signal Interpreter Improved Terrain Scan Processor Improved Targeting Computer > --- WEAPON (4) ------- (None) > --- INVENTORY (5) ---- Light Quantum Reactor Impulse Thruster Medium Insulated Plating High-powered Tractor Beam Fusion Bomb Launcher Peak State ------------ > --- POWER ------------ Improved Fusion Compressor Improved Fusion Compressor > --- PROPULSION ------- Antigrav System Cooled Gravmag System Cooled Gravmag System Cooled Gravmag System Improved Gyrokinetic Inverter Improved Linear Gravjet > --- UTILITY ---------- Medium Storage Unit Advanced Energy Well Improved Terrain Scan Processor Improved Targeting Computer Improved Targeting Computer Precision Matter Filter Improved Kinecellerator Advanced System Shield Drone Bay > --- WEAPON ----------- Railgun Light Antimatter Cannon > --- INVENTORY -------- Light Ion Engine Light Quantum Reactor Impulse Thruster Medium Insulated Plating High-powered Tractor Beam Transdimensional Reconstructor [Rating: 113] Favorites ----------- Power Light Fission Core Engine Improved Ion Engine Power Core Light Fission Core Reactor Cold Fusion Reactor Propulsion Flexi-carbon Leg Treads Improved Treads Leg Flexi-carbon Leg Wheel Compact Wheel Hover Unit Cooled Gravmag System Flight Unit Field Propulsion Drive Utility Signal Interpreter Device Advanced Heat Sink Storage High-capacity Storage Unit Processor Signal Interpreter Hackware Advanced System Shield Protection Improved Core Shielding Weapon Improved Heavy Machine Gun Energy Gun Pulse Rifle Energy Cannon Proton Cannon Ballistic Gun Improved Heavy Machine Gun Ballistic Cannon Gauss Cannon Launcher Shock Bomb Launcher Special Weapon Improved Remote Datajack Slashing Weapon Mining Claw Build | -11 -10 -9 -8 -7 -7 -6 -5 -4 -4 -4 -4 -3 -3 -3 -2 ------- Run | Yrd Mat Mat Mat Fac DSF Fac Fac Fac Upp Upp Zhi Pro Res DSF Res Slots Evolved 16 | . . 2 2 2 . 2 2 2 . . . . 2 . 2 Power 1 | . . . . . . . 1 . . . . . . . . Propulsion 6 | . . 1 1 . . 1 . 1 . . . . 1 . 1 Utility 7 | . . 1 . 1 . 1 1 1 . . . . 1 . 1 Weapon 2 | . . . 1 1 . . . . . . . . . . . Parts Attached 211 | 7 10 12 24 5 11 36 16 52 1 1 6 . 3 5 22 Power 25 | 2 3 . 5 . 1 4 3 4 . . 1 . . . 2 Engine 12 | 2 3 . 4 . 1 1 . 1 . . . . . . . Core 12 | . . . 1 . . 3 2 3 . . 1 . . . 2 Reactor 1 | . . . . . . . 1 . . . . . . . . Propulsion 66 | 2 4 6 10 2 3 10 5 13 . . 3 . . 2 6 Treads 1 | . . . . . . . . 1 . . . . . . . Leg 50 | 2 4 6 10 2 3 10 5 8 . . . . . . . Wheel 1 | . . . . . . . . . . . . . . . 1 Hover 10 | . . . . . . . . 1 . . 3 . . 2 4 Flight 4 | . . . . . . . . 3 . . . . . . 1 Utility 50 | 1 2 2 2 1 2 10 3 12 . 1 2 . 2 . 10 Device 21 | . . 2 1 . 1 3 2 4 . . . . 1 . 7 Storage 9 | 1 1 . 1 . . 2 . 2 . . 1 . . . 1 Processor 8 | . 1 . . . . 1 . 2 . 1 . . 1 . 2 Hackware 1 | . . . . . . . . . . . 1 . . . . Protection 11 | . . . . 1 1 4 1 4 . . . . . . . Artifact . | . . . . . . . . . . . . . . . . Weapon 70 | 2 1 4 7 2 5 12 5 23 1 . . . 1 3 4 Energy Gun 20 | 2 . 2 3 1 . 1 2 8 . . . . . 1 . Energy Cannon 7 | . . 1 1 . 1 1 1 1 . . . . . . 1 Ballistic Gun 26 | . . 1 2 1 1 7 2 10 . . . . . 2 . Ballistic Cannon 9 | . 1 . . . 3 2 . 1 . . . . 1 . 1 Launcher 6 | . . . 1 . . 1 . 2 . . . . . . 2 Special Weapon 1 | . . . . . . . . 1 . . . . . . . Impact Weapon . | . . . . . . . . . . . . . . . . Slashing Weapon 1 | . . . . . . . . . 1 . . . . . . Piercing Weapon . | . . . . . . . . . . . . . . . . Special Melee Weapon . | . . . . . . . . . . . . . . . . Unidentified Prototypes 14 | . . 1 . . . 2 1 2 . . 2 . . . 6 Corrupted Parts 8 | . . . 1 . . 1 3 3 . . . . . . . System Corruption 34 | . . . 3 . . 3 9 19 . . . . . . . Parts Lost 83 | . 1 1 4 . 5 6 6 35 . 1 . 1 . 4 19 Power 8 | . 1 . 1 . 1 1 . 3 . . . . . . 1 Propulsion 27 | . . 1 1 . 1 1 2 14 . . . . . 1 6 Utility 22 | . . . . . 1 2 1 7 . 1 . 1 . 1 8 Weapon 26 | . . . 2 . 2 2 3 11 . . . . . 2 4 Highest Loss Streak 12 | . 1 1 2 . 5 2 2 12 . 1 . 1 . 4 9 To Critical Strikes 1 | . . . . . . . . 1 . . . . . . . Average Slot Usage (%) 89 | . 96 96 98 100 99 99 99 86 26 23 35 57 56 62 51 Engine 4 | . 13 11 7 7 6 3 . 2 . . . . . . . Core 3 | . . . 1 . . 2 11 6 . . 1 5 4 4 2 Leg 25 | . 28 33 35 30 30 33 29 17 . . . . . . . Hover 1 | . . . . . . . . 3 . . 5 15 14 17 13 Device 6 | . . 8 9 7 7 6 10 7 5 2 . . 2 . 3 Storage 7 | . 14 11 9 7 7 6 5 8 . . 1 5 4 4 5 Processor 10 | . 10 11 9 7 7 12 5 9 15 15 21 21 16 19 15 Protection 4 | . . . . 7 6 5 11 6 . . . . . . . Energy Gun 6 | . 26 2 8 7 7 3 6 7 . . . . . . . Energy Cannon 4 | . . 8 8 7 4 6 3 . . . . . . . . Ballistic Gun 8 | . . 8 9 15 5 11 11 9 . . . . . 1 3 Ballistic Cannon 1 | . 1 2 . . 11 4 . . . . . . 4 2 1 Peak Build Rating 113 | 6 8 17 34 40 47 74 82 106 14 14 55 55 64 76 113 Average Rating 54 | 4 6 13 26 39 42 66 80 87 14 11 26 54 61 72 60 On Entrance 36 | . 6 8 17 31 40 47 73 81 13 14 12 55 54 64 76 Naked Turns . | . . . . . . . . . . . . . . . . Heaviest Build 93 | 14 19 21 44 50 60 82 86 93 3 3 12 12 24 29 49 Greatest Support 110 | 20 20 36 64 67 67 97 90 110 3 3 33 33 33 55 56 Greatest Overweight (x) 12 | 1 . . . . 1 . 1 12 . . . . . . 3 Average Overweight (x) . | . . . . . . . . . . . . . . . . Largest Inventory Capacity 20 | 8 8 8 15 15 15 20 20 20 5 5 5 5 5 5 10 Average Capacity 14 | 6 8 8 14 15 15 18 20 17 5 5 5 5 5 5 9 Most Carried 20 | 6 8 8 15 14 15 20 20 20 4 5 5 5 5 5 7 Average Carried 13 | 4 7 7 13 12 13 18 19 15 4 4 4 5 4 5 5 Final Capacity 20 | 8 8 8 15 15 15 20 20 5 5 5 5 5 5 5 5 Final Carried 20 | 6 8 8 15 13 15 19 20 5 4 5 5 5 5 5 5 Class Distribution -------------------- 45% | Gunner 23% | Mutant 16% | Scavenger-Tank 6% | Scavenger-Gunner 5% | Scavenger-Mutant Dominant Class ---------------- Mutant | -10/Materials Mutant | -9/Materials Gunner | -8/Materials Scavenger-Gunner | -7/Factory Gunner | -7/DSF Gunner | -6/Factory Scavenger-Tank | -5/Factory Scavenger-Tank | -4/Factory Mutant | -4/Upper Caves Mutant | -4/Upper Caves Mutant | -4/Zhirov Mutant | -3/Proximity Caves Mutant | -3/Research Mutant | -3/DSF Mutant | -2/Research Resources | -11 -10 -9 -8 -7 -7 -6 -5 -4 -4 -4 -4 -3 -3 -3 -2 ----------- Run | Yrd Mat Mat Mat Fac DSF Fac Fac Fac Upp Upp Zhi Pro Res DSF Res Matter Collected 4746 | 203 195 148 504 . 121 1220 377 1503 . 38 . 34 13 15 375 Remotely 147 | . . . . . . 36 111 . . . . . . . . Salvage Created 6792 | . 422 207 1366 . 117 1755 647 2014 . . . . 7 . 257 Parts 311 | . 21 10 80 . 5 74 29 84 . . . . 1 . 7 Haulers Intercepted 5 | . . . 1 . . 3 . . . . . . . . 1 Recyclers Shooed 7 | . . . . . . 1 2 3 . . . . . . 1 Parts Field Recycled . | . . . . . . . . . . . . . . . . Retrieved Matter . | . . . . . . . . . . . . . . . . Parts Self-Destructed 2 | . . . . . . . . . . . . 2 . . . Prevented . | . . . . . . . . . . . . . . . . Kills | -11 -10 -9 -8 -7 -7 -6 -5 -4 -4 -4 -4 -3 -3 -3 -2 ------- Run | Yrd Mat Mat Mat Fac DSF Fac Fac Fac Upp Upp Zhi Pro Res DSF Res Combat Hostiles Destroyed 111 | . 12 6 26 . 3 25 13 26 . . . . . . . Guns 72 | . 12 5 16 . 1 14 10 14 . . . . . . . Cannons 27 | . . 1 9 . 2 9 2 4 . . . . . . . AOE 10 | . . . 1 . . 2 . 7 . . . . . . . Classes Destroyed 15 | . 2 1 7 . 1 3 1 . . . . . . . . Worker 5 | . . . . . . . 1 2 . . . . 1 . 1 Builder 4 | . . . 1 . . 2 . 1 . . . . . . . Tunneler 2 | . . . 1 . . . . 1 . . . . . . . Hauler 5 | . . . 1 . . 3 . . . . . . . . 1 Recycler 6 | . . . . . . 1 . 4 . . . . . . 1 Operator 1 | . . . 1 . . . . . . . . . . . . Swarmer 24 | . 3 2 4 . . 3 4 8 . . . . . . . Grunt 48 | . 9 3 16 . . 10 6 4 . . . . . . . Brawler 1 | . . 1 . . . . . . . . . . . . . Duelist 1 | . . . . . . 1 . . . . . . . . . Sentry 13 | . . . 3 . 1 3 1 5 . . . . . . . Specialist 4 | . . . 2 . . 2 . . . . . . . . . Hunter 9 | . . . 1 . 1 . 2 5 . . . . . . . Programmer 9 | . . . . . . 5 . 4 . . . . . . . Heavy 2 | . . . . . 1 1 . . . . . . . . . Best Kill Streak 6 | . 3 4 6 . 3 4 3 6 . . . . 1 . 1 Combat Bots Only 5 | . 3 4 5 . 3 4 3 5 . . . . . . . Max Kills in Single Turn 2 | . 1 1 2 . 1 2 2 2 . . . . 1 . 1 Gunslinging . | . . . . . . . . . . . . . . . . Exploded 2 | . . . 1 . . 1 . 2 . . . . . . . Melee . | . . . . . . . . . . . . . . . . Uniques/NPCs Destroyed . | . . . . . . . . . . . . . . . . Combat | -11 -10 -9 -8 -7 -7 -6 -5 -4 -4 -4 -4 -3 -3 -3 -2 -------- Run | Yrd Mat Mat Mat Fac DSF Fac Fac Fac Upp Upp Zhi Pro Res DSF Res Hostile Shots Fired 1242 | . 70 23 150 . 111 185 62 347 2 25 . 5 . 12 250 Missed 436 | . 23 2 47 . 36 62 15 123 . 10 . 3 . 3 112 Damage Taken 15611 | . 597 240 1552 . 1219 2126 790 4796 40 313 . 53 . 411 3474 Core 3216 | . 107 21 279 . 86 246 24 684 40 230 . 25 . 102 1372 Absorbed by Shields 52 | . . . . . . . . 43 . . . . . 9 . Redirected to Shielding 105 | . . . . . . 36 8 61 . . . . . . . Regen/Repaired (Parts) 461 | . . . 324 . . 137 . . . . . . . . . Core Remaining (%) 73 | 100 57 94 49 . 87 71 97 . . . . 14 . 92 . Volleys Fired 333 | . 45 13 65 . 13 75 31 81 . . . . 1 . 9 Largest 4 | . 2 2 3 . 4 4 4 4 . . . . 1 . 2 Hottest 261 | . 100 91 141 . 199 261 187 219 . . . . 65 . 95 Shots Fired 971 | . 85 26 179 . 42 263 112 249 . . . . 1 . 14 Gun 738 | . 83 13 114 . 17 188 96 221 . . . . . . 6 Cannon 217 | . 2 13 61 . 25 71 16 22 . . . . 1 . 6 Launcher 16 | . . . 4 . . 4 . 6 . . . . . . 2 Special . | . . . . . . . . . . . . . . . . Kinetic 476 | . 2 13 61 . 32 159 58 139 . . . . 1 . 11 Thermal 303 | . 83 13 61 . 10 37 27 72 . . . . . . . Explosive 8 | . . . . . . . . 6 . . . . . . 2 Electromagnetic 184 | . . . 57 . . 67 27 32 . . . . . . 1 Robot Hit Streak 23 | . 12 9 13 . 9 23 10 17 . . . . 18 . 10 Robot Miss Streak 7 | . 4 3 3 . 5 4 6 7 . . . . . . 1 Penetration Max 1 | . . . 1 . . . . 1 . . . . . . . Secondary Targets 9 | . 5 . . . . . 1 3 . . . . . . . Max Gunslinging Chain 1 | . 1 . . . . . 1 1 . . . . . . . Shots Hit Robots 616 | . 56 18 109 . 26 172 58 162 . 1 . . 2 . 12 Core Hits 304 | . 23 9 54 . 7 59 46 95 . . . . 1 . 10 Critical Kills 1 | . . . . . . . . 1 . . . . . . . Critical Parts Destroyed 3 | . . . . . . . . 3 . . . . . . . Critical Strikes 26 | . 6 . 1 . 1 5 2 10 . . . . . . 1 Burn 14 | . 6 . . . . 2 1 5 . . . . . . . Destroy 4 | . . . . . . . . 4 . . . . . . . Blast 5 | . . . . . 1 3 . . . . . . . . 1 Corrupt 3 | . . . 1 . . . 1 1 . . . . . . . Melee Attacks 8 | . . . . . . . . . . 5 . . 1 . 2 Impact . | . . . . . . . . . . . . . . . . Slashing 8 | . . . . . . . . . . 5 . . 1 . 2 Piercing . | . . . . . . . . . . . . . . . . Sneak Attacks 1 | . . . . . . . . . . . . . . . 1 Combat Hostiles . | . . . . . . . . . . . . . . . . Follow-up Attacks . | . . . . . . . . . . . . . . . . Damage Inflicted 15125 | . 696 316 2423 . 566 4400 1361 4545 . 23 . . 54 . 741 Guns 9320 | . 660 151 1198 . 215 2627 1016 3305 . . . . . . 148 Cannons 4147 | . 36 165 855 . 351 1483 345 683 . . . . 32 . 197 Explosions 1363 | . . . 370 . . 264 . 543 . . . . . . 186 Melee 101 | . . . . . . . . . . 23 . . 22 . 56 Ramming 194 | . . . . . . 26 . 14 . . . . . . 154 Kinetic 6660 | . 36 151 648 . 415 2364 631 2066 . . . . 32 . 317 Thermal 3873 | . 660 165 992 . 151 581 246 1078 . . . . . . . Explosive 697 | . . . . . . . . 511 . . . . . . 186 Electromagnetic 3600 | . . . 783 . . 1429 484 876 . . . . . . 28 Impact . | . . . . . . . . . . . . . . . . Slashing 101 | . . . . . . . . . . 23 . . 22 . 56 Piercing . | . . . . . . . . . . . . . . . . Highest Corruption 22 | . . . 3 . . 11 9 22 22 22 22 22 . 1 6 Average Corruption 10 | . . . 3 . . 5 6 16 22 22 22 22 . 1 4 Corruption Purged . | . . . . . . . . . . . . . . . . Corruption Blocked . | . . . . . . . . . . . . . . . . Effects 118 | . . . . . . 37 . 53 6 8 4 4 . . 6 Message Errors 24 | . . . . . . 8 . 7 2 2 2 1 . . 2 Matter Fused 27 | . . . . . . 9 . 14 1 . . . . . 3 Heat Flow Errors 18 | . . . . . . 3 . 6 2 2 1 3 . . 1 Energy Discharges 10 | . . . . . . 5 . 5 . . . . . . . Data Loss (minor) 16 | . . . . . . 8 . 4 1 2 1 . . . . Data Loss (major) 2 | . . . . . . 1 . 1 . . . . . . . Misfires 5 | . . . . . . 2 . 3 . . . . . . . Alerts 2 | . . . . . . 1 . 1 . . . . . . . Misdirections 7 | . . . . . . . . 5 . 2 . . . . . Weapon Failures 7 | . . . . . . . . 7 . . . . . . . Overload Shots . | . . . . . . . . . . . . . . . . Overflow Damage 60 | . . 1 10 . . 1 . 45 . . . . . . 3 Projectiles 9 | . . 1 . . . . . 5 . . . . . . 3 Explosions 51 | . . . 10 . . 1 . 40 . . . . . . . Melee . | . . . . . . . . . . . . . . . . Knockbacks 7 | . 2 . . . . 3 . 1 . . . . . . 1 Impact 1 | . . . . . . . . . . . . . . . 1 Kinetic 5 | . 1 . . . . 3 . 1 . . . . . . . Secondary 1 | . 1 . . . . . . . . . . . . . . Self-Inflicted Damage 512 | . . . 48 . . 104 . 286 . . . . . . 74 Shots 6 | . . . 1 . . 2 . 3 . . . . . . . Rammed 12 | . . . . . . . . 3 . . . . . . 9 Targets Rammed 15 | . . . . . . 3 . 3 . . . . . . 9 Kicked 3 | . . . . . . 3 . . . . . . . . . Crushed . | . . . . . . . . . . . . . . . . Highest Temperature 421 | . 357 70 132 . 21 421 413 356 208 76 131 236 . . 242 Average Temperature 97 | . 151 40 27 . 14 77 139 87 88 51 66 108 . . 139 Received Heat Transfer 2759 | . 309 78 783 . 153 387 117 524 12 18 . . . . 378 Effects 8 | . 5 . . . . . 3 . . . . . . . . Energy Bleed 2 | . . . . . . . 2 . . . . . . . . Interference 4 | . 4 . . . . . . . . . . . . . . Matter Decay 1 | . 1 . . . . . . . . . . . . . . Short Circuit 1 | . . . . . . . 1 . . . . . . . . Siege Activations . | . . . . . . . . . . . . . . . . Robots Corrupted 2 | . . . . . . . 1 1 . . . . . . . Combat Hostiles 2 | . . . . . . . 1 1 . . . . . . . Parts Fried 10 | . . . 1 . . 1 4 4 . . . . . . . Impact Corruptions . | . . . . . . . . . . . . . . . . Robots Melted . | . . . . . . . . . . . . . . . . Combat Hostiles . | . . . . . . . . . . . . . . . . Parts Melted 16 | . 6 . 4 . . 1 1 4 . . . . . . . Heat Transferred 9056 | . 2405 296 1630 . 259 1160 555 2751 . . . . . . . Parts Sabotaged . | . . . . . . . . . . . . . . . . Parts Stolen . | . . . . . . . . . . . . . . . . Parts Stripped . | . . . . . . . . . . . . . . . . Power Chain Reactions 5 | . . . 2 . . 2 . 1 . . . . . . . Alert | -11 -10 -9 -8 -7 -7 -6 -5 -4 -4 -4 -4 -3 -3 -3 -2 ------- Run | Yrd Mat Mat Mat Fac DSF Fac Fac Fac Upp Upp Zhi Pro Res DSF Res Peak Influence 811 | . 311 250 811 364 289 465 437 608 . . . . 8 15 271 Initial 364 | . . 5 105 364 254 151 222 213 . . . . 3 6 8 Average 278 | . 131 81 382 364 260 216 295 468 . . . . 3 1 127 Maximum Alert Level 3 | . 1 1 3 1 1 2 2 2 . . . . . . 1 Low Security (%) 35 | 100 81 83 28 . . 43 2 . . . . . 100 100 81 Level 1 38 | . 18 16 29 100 100 54 77 13 . . . . . . 18 Level 2 24 | . . . 34 . . 2 20 86 . . . . . . . Level 3 1 | . . . 7 . . . . . . . . . . . . Level 4 . | . . . . . . . . . . . . . . . . Level 5 . | . . . . . . . . . . . . . . . . High Security . | . . . . . . . . . . . . . . . . Max Security . | . . . . . . . . . . . . . . . . Squads Dispatched 36 | . 2 . 6 . 1 12 4 7 . . . . . . 4 Investigation 6 | . 1 . . . . 4 1 . . . . . . . . Extermination 8 | . . . . . . 4 . 3 . . . . . . 1 Reinforcement 18 | . 1 . 5 . 1 4 . 4 . . . . . . 3 Assault 1 | . . . 1 . . . . . . . . . . . . Garrison 3 | . . . . . . . 3 . . . . . . . . Intercept . | . . . . . . . . . . . . . . . . Searches Triggered . | . . . . . . . . . . . . . . . . Construction Impeded 3 | . . . . . . 1 . 2 . . . . . . . Haulers Reinforced 2 | . . . . . . 1 . . . . . . . . 1 Active Scanning Responses . | . . . . . . . . . . . . . . . . Cargo Convoy Interrupts . | . . . . . . . . . . . . . . . . Stealth | -11 -10 -9 -8 -7 -7 -6 -5 -4 -4 -4 -4 -3 -3 -3 -2 --------- Run | Yrd Mat Mat Mat Fac DSF Fac Fac Fac Upp Upp Zhi Pro Res DSF Res Distress Signals 15 | . 2 1 4 . . 1 1 1 . . . . . . 5 Communications Jammed . | . . . . . . . . . . . . . . . . Distress Signals . | . . . . . . . . . . . . . . . . Times Spotted 251 | . 17 15 47 . 8 34 19 48 4 5 . 5 . 3 46 Peak Tracking Total 15 | . 4 5 8 . 4 5 7 7 4 4 . 8 . 3 15 Tactical Retreats 35 | . 1 4 6 . 1 4 3 2 1 2 . 1 . 1 9 Traps | -11 -10 -9 -8 -7 -7 -6 -5 -4 -4 -4 -4 -3 -3 -3 -2 ------- Run | Yrd Mat Mat Mat Fac DSF Fac Fac Fac Upp Upp Zhi Pro Res DSF Res Traps Triggered 10 | . 1 . . . . 2 . 3 . . . . . 3 1 Indirectly . | . . . . . . . . . . . . . . . . Trap Hack Attempts . | . . . . . . . . . . . . . . . . Triggered . | . . . . . . . . . . . . . . . . Disarmed . | . . . . . . . . . . . . . . . . Reprogrammed . | . . . . . . . . . . . . . . . . Reused . | . . . . . . . . . . . . . . . . Traps Extracted . | . . . . . . . . . . . . . . . . Installed . | . . . . . . . . . . . . . . . . Triggered . | . . . . . . . . . . . . . . . . Machines | -11 -10 -9 -8 -7 -7 -6 -5 -4 -4 -4 -4 -3 -3 -3 -2 ---------- Run | Yrd Mat Mat Mat Fac DSF Fac Fac Fac Upp Upp Zhi Pro Res DSF Res Machines Disabled 11 | . . . 4 . . 2 . 5 . . . . . . . Max in Single Turn 2 | . . . 1 . . 1 . 2 . . . . . . . Garrison Access 1 | . . . 1 . . . . . . . . . . . . Machines Repaired . | . . . . . . . . . . . . . . . . Machines Dismantled . | . . . . . . . . . . . . . . . . Machines Sabotaged . | . . . . . . . . . . . . . . . . Overloaded Fab Kills . | . . . . . . . . . . . . . . . . Hacking | -11 -10 -9 -8 -7 -7 -6 -5 -4 -4 -4 -4 -3 -3 -3 -2 --------- Run | Yrd Mat Mat Mat Fac DSF Fac Fac Fac Upp Upp Zhi Pro Res DSF Res Machines Accessed 49 | . 1 4 7 1 . 12 5 3 . . 9 . 2 . 5 Terminals 29 | . 1 3 4 1 . 7 5 2 . . . . 2 . 4 Fabricators 2 | . . . . . . 1 . 1 . . . . . . . Repair Stations 4 | . . . 2 . . 2 . . . . . . . . . Recycling Units 4 | . . 1 . . . 2 . . . . . . . . 1 Scanalyzers 1 | . . . 1 . . . . . . . . . . . . Garrison Access . | . . . . . . . . . . . . . . . . Total Hacks 178 | . 2 14 33 4 . 29 16 8 . . 48 . 2 . 22 Successful 116 | . 2 8 24 1 . 12 5 3 . . 48 . 1 . 12 Failed 60 | . . 6 9 3 . 17 11 5 . . . . 1 . 8 Catastrophic 14 | . . 1 1 . . 7 3 1 . . . . . . 1 Database Lockouts 2 | . . . . . . . . . . . . . . . 2 Manual 3 | . . . . . . 1 . . . . . . . . 2 Terminals 82 | . 2 11 10 4 . 13 16 4 . . . . 2 . 20 Fabricators 9 | . . . . . . 5 . 4 . . . . . . . Repair Stations 17 | . . . 11 . . 6 . . . . . . . . . Recycling Units 10 | . . 3 . . . 5 . . . . . . . . 2 Scanalyzers 12 | . . . 12 . . . . . . . . . . . . Garrison Access . | . . . . . . . . . . . . . . . . Terminal Hacks 81 | . 2 6 3 1 . 3 5 1 . . 48 . 1 . 11 Record 51 | . . 1 1 . . 1 1 1 . . 36 . . . 10 Part Schematic 4 | . . . . . . . . . . . 4 . . . . Robot Analysis 5 | . . 1 . . . . . . . . 4 . . . . Prototype ID Bank 6 | . . 1 . . . . 1 . . . 4 . . . . Open DSF 4 | . . . . 1 . 1 . . . . . . 1 . 1 Level Access Points 1 | . . 1 . . . . . . . . . . . . . Branch Access Points 1 | . . . . . . 1 . . . . . . . . . Emergency Access Points 1 | . . 1 . . . . . . . . . . . . . Recycling Unit Index 1 | . . . . . . . 1 . . . . . . . . Unreport Threat 1 | . 1 . . . . . . . . . . . . . . Recall Investigation 2 | . . 1 . . . . 1 . . . . . . . . Zone Layout 4 | . 1 . 2 . . . 1 . . . . . . . . Fabricator Hacks 5 | . . . . . . 3 . 2 . . . . . . . Network Status 1 | . . . . . . 1 . . . . . . . . . Load Schematic 2 | . . . . . . 1 . 1 . . . . . . . Build 2 | . . . . . . 1 . 1 . . . . . . . Repair Station Hacks 13 | . . . 10 . . 3 . . . . . . . . . Scan Component 7 | . . . 5 . . 2 . . . . . . . . . Repair 6 | . . . 5 . . 1 . . . . . . . . . Recycling Unit Hacks 5 | . . 2 . . . 3 . . . . . . . . . Report Inventory 2 | . . 1 . . . 1 . . . . . . . . . Retrieve Matter 1 | . . . . . . 1 . . . . . . . . . Retrieve Components 2 | . . 1 . . . 1 . . . . . . . . . Scanalyzer 11 | . . . 11 . . . . . . . . . . . . Insert Component 4 | . . . 4 . . . . . . . . . . . . Analyze 7 | . . . 7 . . . . . . . . . . . . Garrison Access Hacks . | . . . . . . . . . . . . . . . . Unauthorized Hacks 1 | . . . . . . . . . . . . . . . 1 Terminals 1 | . . . . . . . . . . . . . . . 1 Assimilate 1 | . . . . . . . . . . . . . . . 1 Fabricators . | . . . . . . . . . . . . . . . . Repair Stations . | . . . . . . . . . . . . . . . . Recycling Units . | . . . . . . . . . . . . . . . . Scanalyzers . | . . . . . . . . . . . . . . . . Garrison Access . | . . . . . . . . . . . . . . . . Data Cores Recovered . | . . . . . . . . . . . . . . . . Used . | . . . . . . . . . . . . . . . . Hacking Detections 31 | . 1 3 7 1 . 9 4 3 . . . . 1 . 2 Full Trace Events 3 | . . . . . . 3 . . . . . . . . . Feedback Events . | . . . . . . . . . . . . . . . . Feedback Blocked . | . . . . . . . . . . . . . . . . Robot Schematics Acquired . | . . . . . . . . . . . . . . . . Robots Built 2 | . . . . . . . . 2 . . . . . . . Authchips . | . . . . . . . . . . . . . . . . Time 76 | . . . . . . . . 76 . . . . . . . Total Robot Build Rating 10 | . . . . . . . . 10 . . . . . . . Part Schematics Acquired 8 | . . . 4 . . . . . . . 4 . . . . Parts Built 2 | . . . . . . 2 . . . . . . . . . Authchips . | . . . . . . . . . . . . . . . . Time 73 | . . . . . . 73 . . . . . . . . . Total Part Build Rating 6 | . . . . . . 6 . . . . . . . . . Parts Repaired 6 | . . . 5 . . 1 . . . . . . . . . Time 225 | . . . 193 . . 32 . . . . . . . . . Parts Recycled . | . . . . . . . . . . . . . . . . Recycled Matter . | . . . . . . . . . . . . . . . . Retrieved Matter . | . . . . . . . . . . . . . . . . Retrieved Components 11 | . . 2 . . . 9 . . . . . . . . . Parts Scanalyzed 4 | . . . 4 . . . . . . . . . . . . Part Schematics Acquired 4 | . . . 4 . . . . . . . . . . . . Parts Damaged . | . . . . . . . . . . . . . . . . Bothacking | -11 -10 -9 -8 -7 -7 -6 -5 -4 -4 -4 -4 -3 -3 -3 -2 ------------ Run | Yrd Mat Mat Mat Fac DSF Fac Fac Fac Upp Upp Zhi Pro Res DSF Res Used RIF Installer . | . . . . . . . . . . . . . . . . Robots Hacked . | . . . . . . . . . . . . . . . . Non-combat . | . . . . . . . . . . . . . . . . Combat . | . . . . . . . . . . . . . . . . Robot Hacks Applied . | . . . . . . . . . . . . . . . . Relay Couplers Released 1 | . . . 1 . . . . . . . . . . . . Machine Destruction 1 | . . . 1 . . . . . . . . . . . . Fabnet Peak Effective % . | . . . . . . . . . . . . . . . . Robots Rewired . | . . . . . . . . . . . . . . . . Allies Hacked . | . . . . . . . . . . . . . . . . Hacks Repelled . | . . . . . . . . . . . . . . . . Allies | -11 -10 -9 -8 -7 -7 -6 -5 -4 -4 -4 -4 -3 -3 -3 -2 -------- Run | Yrd Mat Mat Mat Fac DSF Fac Fac Fac Upp Upp Zhi Pro Res DSF Res Total Allies 6 | . . . . . . 3 . 2 . . . . . . 1 Largest Group 3 | . . . . . . 3 . 2 . . . . . . 1 Highest-Rated Group 93 | . . . . . . 93 . 40 . . . . . . 26 Highest-Rated Ally 31 | . . . . . . 31 . 23 . . . . . . 26 Total Orders 6 | . . . . . . 1 1 2 . . . . . . 2 COLLECT 2 | . . . . . . . . 2 . . . . . . . EXPLORE 4 | . . . . . . 1 1 . . . . . . . 2 Ally Attacks 18 | . . . . . . 18 . . . . . . . . . Total Damage 275 | . . . . . . 275 . . . . . . . . . Kills 2 | . . . . . . 2 . . . . . . . . . Allies Corrupted . | . . . . . . . . . . . . . . . . Allies Melted 1 | . . . . . . 1 . . . . . . . . . Intel | -11 -10 -9 -8 -7 -7 -6 -5 -4 -4 -4 -4 -3 -3 -3 -2 ------- Run | Yrd Mat Mat Mat Fac DSF Fac Fac Fac Upp Upp Zhi Pro Res DSF Res Robot Analysis Total 5 | . . 1 . . . . . . . . 4 . . . . Derelict Logs Recovered 2 | . . . . . . . . . 2 . . . . . . Drone Launches 7 | . . . . . . 4 1 . . . . . . . 2 Drone Recoveries 4 | . . . . . . 3 . . . . . . . . 1 Exploration | -11 -10 -9 -8 -7 -7 -6 -5 -4 -4 -4 -4 -3 -3 -3 -2 ------------- Run | Yrd Mat Mat Mat Fac DSF Fac Fac Fac Upp Upp Zhi Pro Res DSF Res Turns Passed 7278 | 61 463 392 1185 48 175 1936 745 1270 114 146 81 89 43 50 480 Spaces Moved 5010 | 44 227 249 512 34 87 1154 494 507 225 256 149 211 79 95 687 Core 631 | 11 . . . . . . . 26 225 256 90 . . . 23 Treads 6 | . . . . . . . . 6 . . . . . . . Legs 3101 | 33 227 249 512 34 87 1154 494 311 . . . . . . . Wheels 1 | . . . . . . . . . . . . . . . 1 Hover 1107 | . . . . . . . . . . . 59 211 79 95 663 Flight 164 | . . . . . . . . 164 . . . . . . . Fastest Speed 36 | 50 120 120 120 125 125 108 108 50 50 50 42 42 42 38 36 Average Speed 96 | 104 120 120 124 125 125 111 111 148 50 50 46 42 42 39 56 Slowest Speed 1035 | 120 120 120 127 125 196 128 186 1035 50 50 50 42 42 42 200 Overloaded Moves . | . . . . . . . . . . . . . . . . Propulsion Burnouts . | . . . . . . . . . . . . . . . . Robots Hopped . | . . . . . . . . . . . . . . . . Cave-ins Triggered . | . . . . . . . . . . . . . . . . Teleports 1 | . . . . . . . . . . . . . . . 1 Exploration Rate (%) 36 | 3 41 29 50 2 84 30 12 16 46 54 62 42 3 79 23 Regions Visited 15 Branch Regions 4 Pre-discovered Areas 4 | . . . . . . . . . 1 . 3 . . . . Known Exits Taken 9 | . . 1 . 1 . 1 1 1 1 1 1 . 1 . . Unknown Exits Taken 4 | 1 1 . 1 . . . . . . . . 1 . . . Scrap Searched 2 | . . . . . . . . . . 1 . 1 . . . Spaces Dug 1 | . . . . . . . . . . 1 . . . . . Terrain Destroyed 99 | . . . 10 . . 11 . 46 . 1 . . . . 31 Melee 1 | . . . . . . . . . . 1 . . . . . Projectile 8 | . . . 2 . . . . 6 . . . . . . . AOE 90 | . . . 8 . . 11 . 40 . . . . . . 31 Terrain Rammed . | . . . . . . . . . . . . . . . . Walls Destroyed . | . . . . . . . . . . . . . . . . Machines Disabled . | . . . . . . . . . . . . . . . . Actions | -11 -10 -9 -8 -7 -7 -6 -5 -4 -4 -4 -4 -3 -3 -3 -2 --------- Run | Yrd Mat Mat Mat Fac DSF Fac Fac Fac Upp Upp Zhi Pro Res DSF Res Total 6760 | 55 340 322 934 38 124 1673 625 856 225 262 156 210 84 104 752 Wait 904 | . 34 31 284 . . 336 60 145 . . . . . . 14 Move 4995 | 43 226 248 511 33 86 1153 493 506 224 255 148 210 78 94 687 Hop . | . . . . . . . . . . . . . . . . Pick Up 142 | 5 10 7 27 . 8 33 16 30 . 1 1 . 1 1 2 Fast Attach 75 | 6 2 3 6 . 3 7 2 12 . 1 6 . 2 5 20 Attach 71 | . 1 4 7 3 4 9 8 29 1 . 1 . 1 . 3 Detach 8 | . 1 . 1 . . 1 . 3 . . . . . . 2 Swap 67 | 1 7 5 11 2 4 20 6 11 . . . . . . . Drop 130 | . 14 11 22 . 6 36 9 27 . . . . . 1 4 Fire 333 | . 45 13 65 . 13 75 31 81 . . . . 1 . 9 Melee 8 | . . . . . . . . . . 5 . . 1 . 2 Ram 12 | . . . . . . . . 3 . . . . . . 9 Kick 3 | . . . . . . 3 . . . . . . . . . Crush . | . . . . . . . . . . . . . . . . Escape Stasis 12 | . . . . . . . . 9 . . . . . 3 . Rewire . | . . . . . . . . . . . . . . . . Trap . | . . . . . . . . . . . . . . . . Miscellaneous . | . . . . . . . . . . . . . . . . Route ------- -11/Scrapyard -10/Materials -9/Materials (discovered 3 exits: *Mat x3) -8/Materials -7/Factory -7/DSF -6/Factory (discovered 3 exits: *Fac / Low x2) -5/Factory -4/Factory -4/Upper Caves -4/Upper Caves -4/Zhirov -3/Proximity Caves -3/Research -3/DSF -2/Research History --------- Turn | Location | Event 21 | -11/Scrapyard | Discovered new exit (range 15) 62 | -11/Scrapyard | Entered Materials 316 | -10/Materials | Build established: Mutant 506 | -10/Materials | Discovered new exit (range 8) 525 | -10/Materials | Entered another Materials area 525 | -9/Materials | Evolved 2 slots: Propulsion x1, Utility x1 733 | -9/Materials | Identified exit to Materials 917 | -9/Materials | Entered another Materials area 917 | -8/Materials | Evolved 2 slots: Propulsion x1, Weapon x1 966 | -8/Materials | Repaired Imp. Ion Engine 1208 | -8/Materials | Build established: Gunner 1805 | -8/Materials | Repaired Hvy. EM Pulse Gun 1854 | -8/Materials | Repaired Titanium Leg 1894 | -8/Materials | Repaired Titanium Leg 1948 | -8/Materials | Repaired Corrupted Carbon-fiber Leg 2089 | -8/Materials | Discovered new exit (range 10) 2091 | -8/Materials | Core integrity fell below 50% 2102 | -8/Materials | Entered Factory 2102 | -7/Factory | Evolved 2 slots: Utility x1, Weapon x1 2148 | -7/Factory | Identified exit to DSF 2150 | -7/Factory | Entered DSF 2189 | -7/DSF | Additional patrols routed to DSF 2242 | -7/DSF | Lost 5 parts (1p1n1u2w) 2308 | -7/DSF | Discovered new exit (range 14) 2325 | -7/DSF | Entered Factory 2325 | -6/Factory | Evolved 2 slots: Propulsion x1, Utility x1 2641 | -6/Factory | Repaired Hrd. Light Armor Plating 2894 | -6/Factory | Spotted B-75 Beast 3037 | -6/Factory | Identified exit to Lower Caves 3314 | -6/Factory | Fabricated Imp. Light Armor Plating (x2) 3991 | -6/Factory | Allied Derelicts emerged from ambush trap array 4069 | -6/Factory | Discovered new exit (range 55) 4253 | -6/Factory | Identified exit to Factory 4255 | -6/Factory | System corruption reached 10% 4261 | -6/Factory | Entered another Factory area 4261 | -5/Factory | Evolved 2 slots: Power x1, Utility x1 4665 | -5/Factory | Garrison activated, responded to threat 4705 | -5/Factory | Build established: Scavenger-Tank 4970 | -5/Factory | Discovered new exit (range 15) 4999 | -5/Factory | Identified exit to Factory 5006 | -5/Factory | Entered another Factory area 5006 | -4/Factory | Evolved 2 slots: Propulsion x1, Utility x1 5218 | -4/Factory | Lost 5 parts (1p1n1u2w) 5379 | -4/Factory | Lost 12 parts (1p5n2u4w) 5443 | -4/Factory | System corruption reached 10% 5549 | -4/Factory | Lost 4 parts (1p1n1u1w) 5671 | -4/Factory | Fabricated R-10 Processor (x2) 5704 | -4/Factory | P-70 Sage assimilated allied Processor 7a 5755 | -4/Factory | Lost 3 parts (2n1w) 5868 | -4/Factory | Lost 3 parts (1n1u1w) 5909 | -4/Factory | Build established: Scavenger-Gunner 6108 | -4/Factory | Spotted B-86 Titan 6208 | -4/Factory | Discovered new exit (range 12) 6271 | -4/Factory | Lost 6 parts (4n2w) 6271 | -4/Factory | Core integrity fell below 50% 6276 | -4/Factory | Identified exit to Upper Caves 6276 | -4/Factory | Entered Upper Caves 6291 | -4/Upper Caves | Identified exit to Upper Caves 6309 | -4/Upper Caves | Learned location of Armory (-4) 6390 | -4/Upper Caves | Entered another Upper Caves area 6441 | -4/Upper Caves | Attracted the attention of an 0b10 checkpoint 6477 | -4/Upper Caves | Core integrity fell below 20% 6522 | -4/Upper Caves | Discovered new exit (range 11) 6525 | -4/Upper Caves | Build established: Mutant 6534 | -4/Upper Caves | Identified exit to Zhirov 6536 | -4/Upper Caves | Entered Zhirov 6536 | -4/Zhirov | Discovered new exit (range 3) 6537 | -4/Zhirov | Identified exit to Proximity Caves 6546 | -4/Zhirov | Met Zhirov 6555 | -4/Zhirov | Learned location of Quarantine (-2) 6555 | -4/Zhirov | Learned location of Testing (-3) 6555 | -4/Zhirov | Learned location of Command (-1) 6564 | -4/Zhirov | Zhirov requested help retrieving the SGEMP Prototype 6574 | -4/Zhirov | Found Alien Artifact 6574 | -4/Zhirov | Identified Integrated Reactor 6574 | -4/Zhirov | Installed Integrated Reactor, increased core energy generation (+10) 6601 | -4/Zhirov | Found Alien Artifact 6617 | -4/Zhirov | Entered Proximity Caves 6701 | -3/Proximity Caves | Discovered new exit (range 13) 6703 | -3/Proximity Caves | Attracted the attention of an 0b10 outpost 6706 | -3/Proximity Caves | Entered Research 6706 | -3/Research | Evolved 2 slots: Propulsion x1, Utility x1 6749 | -3/Research | Identified exit to DSF 6749 | -3/Research | Entered DSF 6773 | -3/DSF | Additional patrols routed to DSF 6793 | -3/DSF | Discovered new exit (range 16) 6799 | -3/DSF | Entered Research 6799 | -2/Research | Evolved 2 slots: Propulsion x1, Utility x1 6809 | -2/Research | Lost 4 parts (1n1u2w) 6826 | -2/Research | Spotted B-90 Cyclops 6874 | -2/Research | Central database locked down 6874 | -2/Research | Central database locked down 7044 | -2/Research | Spotted B-90 Cyclops 7056 | -2/Research | Identified Transdimensional Reconstructor 7056 | -2/Research | Warped through subspace 7086 | -2/Research | Lost 9 parts (1p4n3u1w) 7109 | -2/Research | Found Fusion Bomb Launcher 7146 | -2/Research | Core integrity fell below 50% 7154 | -2/Research | Found Prototype Device 7154 | -2/Research | Identified Exp. Actuator Array 7228 | -2/Research | Found Prototype Launcher 7228 | -2/Research | Identified Point Singularity Launcher 7267 | -2/Research | Core integrity fell below 20% 7279 | -2/Research | Destroyed by H-88 Terminator with KE Penetrator Last Messages --------------- 07244_ M-36 Artificer repairs Flexi-carbon Leg. 07245_ Dropped Faulty Point Singularity Launcher. 07246_ Med. Storage Unit destroyed. 07256_ Slug penetrates Wall. 07258_ Acquired Imp. Gyrokinetic Inverter. 07259_ Slug penetrates Wall. 07260_ System corrupted: Matter fused (-10). 07260_ Slug penetrates Fabricator. 07260_ Slug penetrates Wall. 07263_ Penetrated by Slug. 07263_ Adv. Cloaking Device destroyed. 07266_ Slug penetrates Wall. 07268_ Transport Network Coupler destroyed. 07269_ Slug penetrates Wall. 07276_ Penetrated by Slug. 07276_ Slug penetrates A-15 Conveyor. 07276_ Slug penetrates H-88 Terminator. 07278_ Imp. Gyrokinetic Inverter destroyed. 07279_ Penetrated by Slug. [Achievement: 10k Club] Map ----- +----------------------------------------------------+ | ?????????#! #???????????????????????????? | | ?????????# #???????????????????????????? | | ?????????# #???????????????????????????? | | ?????????# #???????????????????????????? | | ?????????# !! ####????????????????????????? | | ?????????# ! ???????????????????????? | | ?????????# ???????????????????????? | | #######??# * ???????????????????????? | | ? ?# ???????????????????????? | | ?? ?# ######+### ????????????????????????? | | ?? """" # #????????? ?????????????????????? | | ?? """" # #????????? #????????????????????? | | ?? """" / #????????# k#????????????????????? | | ?? """" # #????????# #????????????????????? | | ? " # #????????# #????????????????????? | | # ]?# #????????# #????????????????????? | | # ! ?# #????????# #????????????????????? | | #######??# #????????# #????????????????????? | | ????????## ########## ########?????????????? | | ????????# ??????????????? | | ????????#T ### ????????????????? | | ????????## #?# ?????????????????? | | ?????????# #?# "" ???????????????????? | | ###########/#####""" ] #??????######????????? | | #"F w#??????# #????????? | | #""" ! @ ######## #????????? | | """ """ # "" !/ + #????????? | | """ """ # A l # #????????? | | """ """ # g ls ; !#????????? | | # g h hs # #????????? | | # ####s######+### = #????????? | | # g # ## #????????? | | ! # A # ## #????????? | | #/############### # #######????????? | | # ## # # #??????????????? | | # ## # # #??????????????? | | # ## # # #??????????????? | | # ## # # = #??????????????? | | # ## # # #??????????????? | | # ## # # = #??????????????? | | # ## # # !#??????????????? | | # ## = # # #??????????????? | | # ## # #= #??????????????? | | # ## # ##############??????????????? | | #+## # #???????????????????????????? | | # # #???????????????????????????? | | #######+#+#### #???????????????????????????? | | #?????# *#???????????????????????????? | | #?????# ]#???????????????????????????? | | ####### #???????????????????????????? | +----------------------------------------------------+ Best States ------------- Heat Dissipation 81 Energy Generation 48 Energy Capacity 710 Matter Stores 300 Matter Capacity 300 Sight Range 16 Terrain Scan Density 110 ECM Strength 1 Cloak Strength 4 Armor Coverage 375 Core Shielding 30 Phase Shifting 10 Evasion (%) 65 Targeting Accuracy 20 Recoil Reduction 1 Kinecelleration 40 Defensive Hacking 14 Item Schematics ----------------- Imp. Light Armor Plating | -8/Materials | Scanalyzed Imp. Ion Engine | -8/Materials | Scanalyzed Imp. Heat Sink | -8/Materials | Scanalyzed Hvy. Assault Rifle | -8/Materials | Scanalyzed Assault Drone Bay | -4/Zhirov | Free Exp. Heat Sink | -4/Zhirov | Free Exp. Optical Array | -4/Zhirov | Free Imp. Arc Thrower | -4/Zhirov | Free Robot Schematics ------------------ None Fabricated ------------ Imp. Light Armor Plating | x2 | -6/Factory R-10 Processor | x2 | -4/Factory | Preloaded Alien Tech Used ----------------- Integrated Reactor Transdimensional Reconstructor Achievements -------------- 10k Club Alien Tech Armchair Analyst Backstab Dangerous Findings Hey, That's Mine! Just What I Needed My Command Is Your Wish Oops Please Form A Line Respectable Loadout Slippery One Subspace Traveler The Science Guy True Hacker Universal Adapter Use The Force Challenges ------------ None Game ------ Seed ConcussiveMiningTreads Manual? 0 Play Time 02:49:05 Cumulative 6.0 hours Start 2025.03.08 @ 16:44:16 End 2025.03.08 @ 19:42:00 Sessions 1 Manual Loads 0 Difficulty Rogue Special Mode None Game No. 5 Rogue 5 Adventurer 0 Explorer 0 Win Type - Total 0 Types 0/0/0/0/0/0/0/0/0 Lore% 13 Gallery% 13 Achievement% 15 Wizard Run 0 Options --------- Layout 0 ASCII 0 Keyboard 0 Movement Vi Keybinds 0 Fullscreen 1 Font 24/Tamsyn Map View 76x50 Zoom Use 0% Tactical HUD 1 Map Filters NONE Filters NONE Steam 1 RUN: 73934715-54dd-4dd7-bafd-fe20a2c53799